[Event "Live Chess"]
[Site "Chess.com"]
[Date "2024.06.02"]
[Round "-"]
[White "Duke_of_Bebington"]
[Black "Bradfield133"]
[Result "1-0"]
[WhiteElo "1643"]
[BlackElo "1849"]
[TimeControl "300"]
[EndTime "4:14:29 PDT"]
[Termination "Duke_of_Bebington won by resignation"]

1. e4 {[%clk 0:04:58.2]} 1... c5 {[%clk 0:04:58]} 2. c3 {[%clk 0:04:56.8]} 2...
d5 {[%clk 0:04:55.6]} 3. exd5 {[%clk 0:04:55.4]} 3... Qxd5 {[%clk 0:04:54.3]} 4.
d4 {[%clk 0:04:55.3]} 4... Nc6 {[%clk 0:04:47.2]} 5. Nf3 {[%clk 0:04:54.7]} 5...
Bg4 {[%clk 0:04:45.1]} 6. Be2 {[%clk 0:04:54]} 6... Nf6 {[%clk 0:04:43]} 7. O-O
{[%clk 0:04:52.2]} 7... e6 {[%clk 0:04:39.9]} 8. Bf4 {[%clk 0:04:46]} 8... cxd4
{[%clk 0:04:36.4]} 9. Nxd4 {[%clk 0:04:44.8]} 9... Bxe2 {[%clk 0:04:32.7]} 10.
Nxe2 {[%clk 0:04:39.5]} 10... Be7 {[%clk 0:04:24]} 11. Nd2 {[%clk 0:04:35.1]}
11... O-O {[%clk 0:04:19]} 12. Qb3 {[%clk 0:04:33]} 12... Na5 {[%clk 0:04:06]}
13. Qxd5 {[%clk 0:04:29.3]} 13... Nxd5 {[%clk 0:04:04.5]} 14. Bg3 {[%clk
0:04:27.4]} 14... Rac8 {[%clk 0:03:58.3]} 15. Rad1 {[%clk 0:04:21.4]} 15... Rfd8
{[%clk 0:03:50.1]} 16. Nd4 {[%clk 0:04:14.1]} 16... a6 {[%clk 0:03:39.6]} 17.
N2f3 {[%clk 0:04:07]} 17... Nc4 {[%clk 0:03:29.4]} 18. b3 {[%clk 0:03:47.8]}
18... Nd6 {[%clk 0:03:00.9]} 19. c4 {[%clk 0:03:42.3]} 19... Nc3 {[%clk
0:02:51.8]} 20. Ra1 {[%clk 0:03:31.2]} 20... Nce4 {[%clk 0:02:40.6]} 21. Rfe1
{[%clk 0:03:21.6]} 21... Bf6 {[%clk 0:02:37.8]} 22. Bxd6 {[%clk 0:03:15.2]}
22... Nxd6 {[%clk 0:02:31.8]} 23. Rad1 {[%clk 0:03:07.7]} 23... h6 {[%clk
0:02:25.1]} 24. Rd3 {[%clk 0:02:45.5]} 24... Nf5 {[%clk 0:02:14.8]} 25. Red1
{[%clk 0:02:42.7]} 25... Nxd4 {[%clk 0:02:04.1]} 26. Nxd4 {[%clk 0:02:40.1]}
26... Rd7 {[%clk 0:01:56.7]} 27. Nf3 {[%clk 0:02:38.6]} 27... Rcd8 {[%clk
0:01:54]} 28. Rxd7 {[%clk 0:02:36.5]} 1-0

[Event "Live Chess"]
[Site "Chess.com"]
[Date "2024.06.02"]
[Round "-"]
[White "asingardenof"]
[Black "McFim"]
[Result "0-1"]
[WhiteElo "621"]
[BlackElo "1700"]
[TimeControl "300"]
[EndTime "4:14:34 PDT"]
[Termination "McFim won by resignation"]

1. e4 {[%clk 0:04:55.4]} 1... c6 {[%clk 0:04:59.9]} 2. Nf3 {[%clk 0:04:54.6]}
2... d5 {[%clk 0:04:59.8]} 3. exd5 {[%clk 0:04:51.7]} 3... cxd5 {[%clk
0:04:59.7]} 4. Nc3 {[%clk 0:04:50.5]} 4... Nc6 {[%clk 0:04:59.2]} 5. d4 {[%clk
0:04:48.2]} 5... Nf6 {[%clk 0:04:57.9]} 6. Bf4 {[%clk 0:04:45.7]} 6... Bg4
{[%clk 0:04:56.9]} 7. Be2 {[%clk 0:04:44.3]} 7... a6 {[%clk 0:04:55.6]} 8. O-O
{[%clk 0:04:42.8]} 8... e6 {[%clk 0:04:54.4]} 9. h3 {[%clk 0:04:39.2]} 9... Bh5
{[%clk 0:04:49.5]} 10. Bd3 {[%clk 0:04:33.1]} 10... Be7 {[%clk 0:04:47.4]} 11.
Bg5 {[%clk 0:04:24.4]} 11... Bxf3 {[%clk 0:04:41.2]} 12. Qxf3 {[%clk 0:04:21.4]}
12... Nxd4 {[%clk 0:04:40.5]} 13. Qe3 {[%clk 0:04:18.7]} 13... Nc6 {[%clk
0:04:38.1]} 14. Qf3 {[%clk 0:04:10.2]} 14... O-O {[%clk 0:04:35.4]} 15. Ne2
{[%clk 0:04:04]} 15... Ne5 {[%clk 0:04:31.1]} 16. Qg3 {[%clk 0:03:58.1]} 16...
Nxd3 {[%clk 0:04:29.1]} 17. Nf4 {[%clk 0:03:55]} 17... Nxf4 {[%clk 0:04:26.7]}
18. Qxf4 {[%clk 0:03:54]} 18... h6 {[%clk 0:04:22.6]} 19. Bh4 {[%clk 0:03:52.4]}
19... g5 {[%clk 0:04:16.9]} 20. Qg3 {[%clk 0:03:49.3]} 20... Kh8 {[%clk
0:04:13.1]} 21. Qe5 {[%clk 0:03:41.4]} 21... gxh4 {[%clk 0:04:10.1]} 22. g4
{[%clk 0:03:32.9]} 22... Qd6 {[%clk 0:04:04.9]} 23. Qe3 {[%clk 0:03:26.9]} 23...
Kg7 {[%clk 0:03:59.7]} 24. f4 {[%clk 0:03:20.2]} 24... Qc6 {[%clk 0:03:51.3]}
25. c3 {[%clk 0:03:18]} 25... Bc5 {[%clk 0:03:49.7]} 26. Qf2 {[%clk 0:03:02.6]}
26... Ne4 {[%clk 0:03:47.2]} 27. Qxc5 {[%clk 0:02:56.5]} 27... Qxc5+ {[%clk
0:03:45.6]} 28. Kh2 {[%clk 0:02:54.1]} 28... Qe3 {[%clk 0:03:41.5]} 0-1

[Event "Live Chess"]
[Site "Chess.com"]
[Date "2024.06.02"]
[Round "-"]
[White "CarmelJane"]
[Black "Kyrylo7770"]
[Result "0-1"]
[WhiteElo "2048"]
[BlackElo "1651"]
[TimeControl "300"]
[EndTime "4:14:40 PDT"]
[Termination "Kyrylo7770 won by resignation"]

1. Nf3 {[%clk 0:04:56.4]} 1... d5 {[%clk 0:04:57]} 2. b3 {[%clk 0:04:54.5]} 2...
Bg4 {[%clk 0:04:56.6]} 3. e3 {[%clk 0:04:51.3]} 3... e6 {[%clk 0:04:56.2]} 4.
Be2 {[%clk 0:04:49.9]} 4... c5 {[%clk 0:04:55.4]} 5. Bb2 {[%clk 0:04:49.2]} 5...
Nc6 {[%clk 0:04:54.9]} 6. h3 {[%clk 0:04:48.5]} 6... Bh5 {[%clk 0:04:53.8]} 7.
g4 {[%clk 0:04:47.5]} 7... Bg6 {[%clk 0:04:53]} 8. Bb5 {[%clk 0:04:46.5]} 8...
Be7 {[%clk 0:04:51.3]} 9. Ne5 {[%clk 0:04:45.4]} 9... Rc8 {[%clk 0:04:46.1]} 10.
Nxg6 {[%clk 0:04:42.1]} 10... hxg6 {[%clk 0:04:45.2]} 11. Bxg7 {[%clk
0:04:40.3]} 11... Rh7 {[%clk 0:04:43.1]} 12. Bb2 {[%clk 0:04:39.1]} 12... Bf6
{[%clk 0:04:42.5]} 13. Bxf6 {[%clk 0:04:33.3]} 13... Qxf6 {[%clk 0:04:41.9]} 14.
Nc3 {[%clk 0:04:32.5]} 14... d4 {[%clk 0:04:39.7]} 15. Ne4 {[%clk 0:04:27.9]}
15... Qe5 {[%clk 0:04:34.9]} 16. d3 {[%clk 0:04:06.9]} 16... dxe3 {[%clk
0:04:31.1]} 17. fxe3 {[%clk 0:04:04.6]} 17... a6 {[%clk 0:04:12.1]} 18. Bxc6+
{[%clk 0:04:01.8]} 18... Rxc6 {[%clk 0:04:09.8]} 19. Rb1 {[%clk 0:04:01.4]}
19... f5 {[%clk 0:04:05.7]} 20. Ng5 {[%clk 0:03:46.9]} 20... Qg3+ {[%clk
0:04:02.6]} 21. Kd2 {[%clk 0:03:46.4]} 21... Rd7 {[%clk 0:03:51.1]} 22. Nf3
{[%clk 0:03:33.1]} 22... f4 {[%clk 0:03:47.6]} 23. e4 {[%clk 0:03:21.8]} 23...
Nf6 {[%clk 0:03:45.1]} 24. Rg1 {[%clk 0:03:06]} 24... Nxe4+ {[%clk 0:03:43.4]}
25. Kc1 {[%clk 0:03:03]} 25... Qf2 {[%clk 0:03:36.2]} 26. Kb2 {[%clk 0:02:39.8]}
26... c4 {[%clk 0:03:05.8]} 27. Rf1 {[%clk 0:02:24.2]} 27... c3+ {[%clk
0:02:57.9]} 28. Ka1 {[%clk 0:02:21]} 28... Qc5 {[%clk 0:02:53.5]} 29. Qe2 {[%clk
0:01:45.2]} 29... Ng3 {[%clk 0:02:50.8]} 30. Qh2 {[%clk 0:01:22.2]} 30... Nxf1
{[%clk 0:02:42.6]} 31. Rxf1 {[%clk 0:01:22.1]} 31... Qa3 {[%clk 0:02:36.3]} 32.
Rb1 {[%clk 0:01:20.4]} 32... g5 {[%clk 0:02:35]} 33. Ne5 {[%clk 0:01:18.7]}
33... Rc5 {[%clk 0:02:30.5]} 34. Nxd7 {[%clk 0:01:14.4]} 34... Ra5 {[%clk
0:02:30.1]} 35. Nf6+ {[%clk 0:01:07]} 35... Kf7 {[%clk 0:02:22.6]} 0-1

[Event "Live Chess"]
[Site "Chess.com"]
[Date "2024.06.02"]
[Round "-"]
[White "vincents82"]
[Black "willc-h99"]
[Result "0-1"]
[WhiteElo "1991"]
[BlackElo "2597"]
[TimeControl "300"]
[EndTime "4:14:45 PDT"]
[Termination "willc-h99 won by resignation"]

1. e4 {[%clk 0:04:56.1]} 1... g6 {[%clk 0:04:58.6]} 2. d4 {[%clk 0:04:51.9]}
2... Bg7 {[%clk 0:04:57]} 3. Nc3 {[%clk 0:04:51.3]} 3... a6 {[%clk 0:04:56.1]}
4. Nf3 {[%clk 0:04:50.9]} 4... b5 {[%clk 0:04:55.4]} 5. Be3 {[%clk 0:04:50.4]}
5... Bb7 {[%clk 0:04:54.2]} 6. Be2 {[%clk 0:04:49.9]} 6... e6 {[%clk 0:04:49.2]}
7. a3 {[%clk 0:04:48.7]} 7... d6 {[%clk 0:04:44.1]} 8. Qd2 {[%clk 0:04:47.5]}
8... Nd7 {[%clk 0:04:42.5]} 9. h4 {[%clk 0:04:45.8]} 9... h6 {[%clk 0:04:40.4]}
10. h5 {[%clk 0:04:43.7]} 10... g5 {[%clk 0:04:38.6]} 11. O-O-O {[%clk 0:04:43]}
11... Ngf6 {[%clk 0:04:34.8]} 12. e5 {[%clk 0:04:41.7]} 12... Ng4 {[%clk
0:04:24.4]} 13. exd6 {[%clk 0:04:40.6]} 13... cxd6 {[%clk 0:04:21.8]} 14. d5
{[%clk 0:04:38.9]} 14... Nxe3 {[%clk 0:04:16.7]} 15. Qxe3 {[%clk 0:04:32.3]}
15... e5 {[%clk 0:04:14.6]} 16. Ne4 {[%clk 0:04:16.3]} 16... Nb6 {[%clk
0:04:08.7]} 17. Ng3 {[%clk 0:04:06.8]} 17... Nxd5 {[%clk 0:04:04.2]} 18. Qe4
{[%clk 0:04:05.2]} 18... O-O {[%clk 0:03:30.9]} 19. Rxd5 {[%clk 0:04:02.2]}
19... Rc8 {[%clk 0:03:15.5]} 20. Nf5 {[%clk 0:03:53.2]} 20... Qf6 {[%clk
0:02:53.1]} 21. g4 {[%clk 0:03:42]} 21... Rc5 {[%clk 0:02:46.2]} 22. Rhd1 {[%clk
0:03:40.7]} 22... Rfc8 {[%clk 0:02:44.1]} 23. c3 {[%clk 0:03:06.4]} 23... Qe6
{[%clk 0:02:43.1]} 24. Ne3 {[%clk 0:03:03.1]} 24... Bf8 {[%clk 0:02:35.2]} 25.
Qd3 {[%clk 0:02:57.1]} 25... Bxd5 {[%clk 0:02:33.6]} 26. Nxd5 {[%clk 0:02:48.6]}
26... e4 {[%clk 0:02:32.9]} 27. Qd4 {[%clk 0:01:40.8]} 27... exf3 {[%clk
0:02:24]} 28. Nf6+ {[%clk 0:01:38.6]} 28... Kh8 {[%clk 0:02:23.4]} 29. Ne8+
{[%clk 0:01:28.7]} 29... Qe5 {[%clk 0:02:18.9]} 30. Qxe5+ {[%clk 0:01:07.8]}
30... Rxe5 {[%clk 0:02:10.8]} 31. Bxf3 {[%clk 0:01:06.1]} 31... Rexe8 {[%clk
0:02:09]} 0-1

[Event "Live Chess"]
[Site "Chess.com"]
[Date "2024.06.02"]
[Round "-"]
[White "ZatixMajor"]
[Black "GwaryTek"]
[Result "1-0"]
[WhiteElo "2034"]
[BlackElo "1838"]
[TimeControl "300"]
[EndTime "4:14:46 PDT"]
[Termination "ZatixMajor won on time"]

1. c4 {[%clk 0:04:59.4]} 1... Nf6 {[%clk 0:04:56.9]} 2. g3 {[%clk 0:04:58.8]}
2... c6 {[%clk 0:04:54.9]} 3. Bg2 {[%clk 0:04:58.3]} 3... d5 {[%clk 0:04:53.6]}
4. Nf3 {[%clk 0:04:58.2]} 4... Bf5 {[%clk 0:04:50.4]} 5. cxd5 {[%clk 0:04:56.6]}
5... cxd5 {[%clk 0:04:49.1]} 6. Qb3 {[%clk 0:04:56.3]} 6... Qb6 {[%clk
0:04:45.9]} 7. Qxb6 {[%clk 0:04:55.7]} 7... axb6 {[%clk 0:04:44.6]} 8. Nc3
{[%clk 0:04:55.2]} 8... e6 {[%clk 0:04:42.7]} 9. d4 {[%clk 0:04:52.3]} 9... Nc6
{[%clk 0:04:31.4]} 10. Nb5 {[%clk 0:04:51.1]} 10... Kd7 {[%clk 0:04:29.7]} 11.
Bf4 {[%clk 0:04:49.7]} 11... Bb4+ {[%clk 0:04:20]} 12. Nd2 {[%clk 0:04:41.4]}
12... Ne4 {[%clk 0:04:07.8]} 13. Bxe4 {[%clk 0:04:37.1]} 13... Bxe4 {[%clk
0:04:06.4]} 14. f3 {[%clk 0:04:36.6]} 14... Bg6 {[%clk 0:04:03.2]} 15. O-O
{[%clk 0:04:35.1]} 15... Ra5 {[%clk 0:03:57.7]} 16. a4 {[%clk 0:04:20.7]} 16...
f6 {[%clk 0:03:33.9]} 17. Nb3 {[%clk 0:04:17.4]} 17... Raa8 {[%clk 0:03:28.1]}
18. Bc7 {[%clk 0:04:11.1]} 18... Bc2 {[%clk 0:03:14.6]} 19. Nc1 {[%clk
0:03:59.9]} 19... Rxa4 {[%clk 0:02:53.5]} 20. Nd3 {[%clk 0:03:54.4]} 20... Bxd3
{[%clk 0:02:39.6]} 21. exd3 {[%clk 0:03:54.3]} 21... Ra6 {[%clk 0:02:32.6]} 22.
Rfc1 {[%clk 0:03:42.5]} 22... Rha8 {[%clk 0:02:24]} 23. Rab1 {[%clk 0:03:38.7]}
23... Ra5 {[%clk 0:02:04.6]} 24. Bxb6 {[%clk 0:03:30.4]} 24... Rxb5 {[%clk
0:02:00.4]} 25. Bc5 {[%clk 0:03:29.4]} 25... Ra2 {[%clk 0:01:41.1]} 26. Rc2
{[%clk 0:03:13.7]} 26... Bxc5 {[%clk 0:01:30.8]} 27. dxc5 {[%clk 0:03:13.6]}
27... Nd4 {[%clk 0:01:25.2]} 28. Rf2 {[%clk 0:03:11.7]} 28... Rxc5 {[%clk
0:01:20.7]} 29. f4 {[%clk 0:03:09.1]} 29... b5 {[%clk 0:01:12.4]} 30. b4 {[%clk
0:03:06.3]} 30... Rxf2 {[%clk 0:01:06.1]} 31. bxc5 {[%clk 0:03:03.4]} 31... Rc2
{[%clk 0:00:58.8]} 32. Rb4 {[%clk 0:03:02.3]} 32... Nf3+ {[%clk 0:00:54]} 33.
Kf1 {[%clk 0:03:01.2]} 33... Rxc5 {[%clk 0:00:51.3]} 34. h4 {[%clk 0:02:59.5]}
34... e5 {[%clk 0:00:39.1]} 35. Rb2 {[%clk 0:02:57.9]} 35... e4 {[%clk
0:00:34.6]} 36. dxe4 {[%clk 0:02:54.4]} 36... dxe4 {[%clk 0:00:34.5]} 37. Ra2
{[%clk 0:02:53]} 37... Rd5 {[%clk 0:00:25.3]} 38. Ra7+ {[%clk 0:02:51]} 38...
Kc6 {[%clk 0:00:24.6]} 39. Rxg7 {[%clk 0:02:49.3]} 39... Kc5 {[%clk 0:00:23.8]}
40. Rxh7 {[%clk 0:02:48.3]} 40... Kd4 {[%clk 0:00:23.1]} 41. Rb7 {[%clk
0:02:43.4]} 41... Ke3 {[%clk 0:00:22]} 42. Kg2 {[%clk 0:02:42.1]} 42... f5
{[%clk 0:00:18.5]} 43. Kh3 {[%clk 0:02:27.8]} 43... Rd2 {[%clk 0:00:16.5]} 44.
g4 {[%clk 0:02:27.2]} 44... Rh2+ {[%clk 0:00:14.5]} 45. Kg3 {[%clk 0:02:26.6]}
45... Rxh4 {[%clk 0:00:12.7]} 46. gxf5 {[%clk 0:02:24.1]} 46... Rxf4 {[%clk
0:00:11.9]} 47. Rxb5 {[%clk 0:02:22.5]} 47... Nd4 {[%clk 0:00:04.5]} 48. Rb1
{[%clk 0:02:11.8]} 48... Nxf5+ {[%clk 0:00:04.4]} 49. Kg2 {[%clk 0:02:10.3]}
49... Rg4+ {[%clk 0:00:03.8]} 50. Kf1 {[%clk 0:02:08.4]} 50... Nd4 {[%clk
0:00:03]} 51. Re1+ {[%clk 0:02:07.3]} 51... Kf3 {[%clk 0:00:01.7]} 52. Rd1
{[%clk 0:02:03.5]} 52... e3 {[%clk 0:00:01.4]} 53. Rd3 {[%clk 0:01:55]} 1-0

[Event "Live Chess"]
[Site "Chess.com"]
[Date "2024.06.02"]
[Round "-"]
[White "LL220284LL"]
[Black "NottheBishopSacrifice"]
[Result "1/2-1/2"]
[WhiteElo "2511"]
[BlackElo "2329"]
[TimeControl "300"]
[EndTime "4:15:21 PDT"]
[Termination "Game drawn by repetition"]

1. g3 {[%clk 0:04:58.1]} 1... d5 {[%clk 0:04:58.4]} 2. Bg2 {[%clk 0:04:56.7]}
2... c5 {[%clk 0:04:57.4]} 3. d3 {[%clk 0:04:54.7]} 3... Nc6 {[%clk 0:04:56.4]}
4. b3 {[%clk 0:04:53.1]} 4... e5 {[%clk 0:04:54.8]} 5. Bb2 {[%clk 0:04:52.5]}
5... f6 {[%clk 0:04:53.9]} 6. e3 {[%clk 0:04:51]} 6... Be6 {[%clk 0:04:52.4]} 7.
Ne2 {[%clk 0:04:49.8]} 7... Bd6 {[%clk 0:04:51.5]} 8. O-O {[%clk 0:04:48.2]}
8... Nge7 {[%clk 0:04:51.1]} 9. Nd2 {[%clk 0:04:46.5]} 9... O-O {[%clk
0:04:49.8]} 10. c4 {[%clk 0:04:44.7]} 10... d4 {[%clk 0:04:46.4]} 11. exd4
{[%clk 0:04:43.1]} 11... exd4 {[%clk 0:04:45.4]} 12. Ne4 {[%clk 0:04:41]} 12...
Qd7 {[%clk 0:04:44.3]} 13. Nxd6 {[%clk 0:04:38.1]} 13... Qxd6 {[%clk 0:04:42.2]}
14. Bc1 {[%clk 0:04:35.4]} 14... Qd7 {[%clk 0:04:39.9]} 15. Nf4 {[%clk 0:04:33]}
15... Bf7 {[%clk 0:04:38.9]} 16. Re1 {[%clk 0:04:31.3]} 16... Ne5 {[%clk
0:04:28.1]} 17. Rb1 {[%clk 0:04:15.8]} 17... N7g6 {[%clk 0:04:23.2]} 18. Nd5
{[%clk 0:04:11.2]} 18... Rfe8 {[%clk 0:04:14.6]} 19. h4 {[%clk 0:04:08.3]} 19...
Ne7 {[%clk 0:04:12]} 20. Nxe7+ {[%clk 0:04:04.6]} 20... Rxe7 {[%clk 0:04:10.5]}
21. Bf4 {[%clk 0:04:00.8]} 21... Ng6 {[%clk 0:04:05.5]} 22. Bd2 {[%clk
0:03:59.8]} 22... Rae8 {[%clk 0:04:02.2]} 23. Rxe7 {[%clk 0:03:49]} 23... Qxe7
{[%clk 0:04:00.4]} 24. Qf1 {[%clk 0:03:43.7]} 24... Ne5 {[%clk 0:03:58]} 25. Re1
{[%clk 0:03:42.2]} 25... Qd7 {[%clk 0:03:57.4]} 26. Bf4 {[%clk 0:03:34]} 26...
Nc6 {[%clk 0:03:55]} 27. Rxe8+ {[%clk 0:03:26.5]} 27... Qxe8 {[%clk 0:03:53.9]}
28. Qd1 {[%clk 0:03:23.2]} 28... h5 {[%clk 0:03:46.4]} 29. a3 {[%clk 0:03:14.9]}
29... Bg6 {[%clk 0:03:44.6]} 30. Qf3 {[%clk 0:03:03.7]} 30... Na5 {[%clk
0:03:36.9]} 31. Qd5+ {[%clk 0:03:00.3]} 31... Kh7 {[%clk 0:03:33.7]} 32. Qxc5
{[%clk 0:02:36]} 32... Nxb3 {[%clk 0:03:31.1]} 33. Qb4 {[%clk 0:02:30.1]} 33...
Bxd3 {[%clk 0:03:06.4]} 34. Qxb3 {[%clk 0:02:24.2]} 34... Qe1+ {[%clk
0:03:05.3]} 35. Kh2 {[%clk 0:02:23.2]} 35... Qe2 {[%clk 0:03:04.8]} 36. Qxb7
{[%clk 0:02:08.6]} 36... Qxf2 {[%clk 0:03:01.7]} 37. Qd5 {[%clk 0:01:54.3]}
37... Kg6 {[%clk 0:02:51.2]} 38. c5 {[%clk 0:01:44.2]} 38... Bf1 {[%clk
0:02:45.8]} 39. c6 {[%clk 0:01:35.7]} 39... d3 {[%clk 0:02:41.6]} 40. c7 {[%clk
0:01:31.6]} 40... Qc2 {[%clk 0:02:35.2]} 41. Kh3 {[%clk 0:01:19]} 41... Bxg2+
{[%clk 0:02:28.1]} 42. Qxg2 {[%clk 0:01:18.9]} 42... Qc4 {[%clk 0:02:22.7]} 43.
Qd2 {[%clk 0:01:14]} 43... Kf7 {[%clk 0:02:18.5]} 44. Qb4 {[%clk 0:01:09.4]}
44... Qe6+ {[%clk 0:02:15.7]} 45. Kg2 {[%clk 0:01:02.3]} 45... Qe2+ {[%clk
0:02:14]} 46. Kg1 {[%clk 0:00:59.7]} 46... Qd1+ {[%clk 0:02:12.6]} 47. Kh2
{[%clk 0:00:44.1]} 47... Qe2+ {[%clk 0:02:07.4]} 48. Kg1 {[%clk 0:00:40.8]}
48... Qd1+ {[%clk 0:02:05.6]} 49. Kf2 {[%clk 0:00:39.9]} 49... Qe2+ {[%clk
0:02:03.2]} 50. Kg1 {[%clk 0:00:39.3]} 1/2-1/2

[Event "Live Chess"]
[Site "Chess.com"]
[Date "2024.06.02"]
[Round "-"]
[White "MagnersCarlsberg2870"]
[Black "MaksymYurii"]
[Result "1-0"]
[WhiteElo "1782"]
[BlackElo "999"]
[TimeControl "300"]
[EndTime "4:16:05 PDT"]
[Termination "MagnersCarlsberg2870 won by checkmate"]

1. d4 {[%clk 0:04:58]} 1... d5 {[%clk 0:04:58.7]} 2. e3 {[%clk 0:04:56.3]} 2...
Nc6 {[%clk 0:04:57.9]} 3. Bd3 {[%clk 0:04:54.7]} 3... Nf6 {[%clk 0:04:55.8]} 4.
f4 {[%clk 0:04:53.5]} 4... e6 {[%clk 0:04:46.5]} 5. c3 {[%clk 0:04:50.9]} 5...
Bd6 {[%clk 0:04:43.8]} 6. Nd2 {[%clk 0:04:49.5]} 6... O-O {[%clk 0:04:40.1]} 7.
Qe2 {[%clk 0:04:48.4]} 7... h6 {[%clk 0:04:36.8]} 8. Ngf3 {[%clk 0:04:47.3]}
8... Re8 {[%clk 0:04:30.6]} 9. O-O {[%clk 0:04:45.6]} 9... a6 {[%clk 0:04:13.3]}
10. Ne5 {[%clk 0:04:44.4]} 10... Bd7 {[%clk 0:04:04.1]} 11. e4 {[%clk
0:04:41.3]} 11... dxe4 {[%clk 0:04:01.6]} 12. Nxe4 {[%clk 0:04:40]} 12... Nxe4
{[%clk 0:03:59.8]} 13. Qxe4 {[%clk 0:04:38.9]} 13... Bxe5 {[%clk 0:03:57.5]} 14.
Qh7+ {[%clk 0:04:36.7]} 14... Kf8 {[%clk 0:03:56]} 15. fxe5 {[%clk 0:04:31.4]}
15... Qh4 {[%clk 0:03:42.1]} 16. b3 {[%clk 0:04:04.3]} 16... Ke7 {[%clk
0:03:30.2]} 17. Ba3+ {[%clk 0:04:02.1]} 17... Kd8 {[%clk 0:03:26.8]} 18. Rxf7
{[%clk 0:03:59]} 18... Qg5 {[%clk 0:03:17.1]} 19. Qxg7 {[%clk 0:03:49.3]} 19...
Qxg7 {[%clk 0:03:05.6]} 20. Rxg7 {[%clk 0:03:48]} 20... b5 {[%clk 0:03:00.4]}
21. Rf1 {[%clk 0:03:46]} 21... Ne7 {[%clk 0:02:50.8]} 22. Rff7 {[%clk
0:03:41.6]} 22... c5 {[%clk 0:02:40.1]} 23. Bxc5 {[%clk 0:03:38.6]} 23... Rc8
{[%clk 0:02:37.5]} 24. Rxe7 {[%clk 0:03:33.3]} 24... Rxe7 {[%clk 0:02:32.5]} 25.
Bxe7+ {[%clk 0:03:30.8]} 25... Ke8 {[%clk 0:02:29.8]} 26. Bg6# {[%clk
0:03:27.9]} 1-0

[Event "Live Chess"]
[Site "Chess.com"]
[Date "2024.06.02"]
[Round "-"]
[White "dmitro74"]
[Black "KyryloPoluliakh"]
[Result "0-1"]
[WhiteElo "1726"]
[BlackElo "1534"]
[TimeControl "300"]
[EndTime "4:16:19 PDT"]
[Termination "KyryloPoluliakh won on time"]

1. d4 {[%clk 0:04:57.7]} 1... Nf6 {[%clk 0:04:56.3]} 2. c4 {[%clk 0:04:56.4]}
2... g6 {[%clk 0:04:55.5]} 3. Nc3 {[%clk 0:04:55.7]} 3... Bg7 {[%clk 0:04:54.3]}
4. e4 {[%clk 0:04:55.2]} 4... O-O {[%clk 0:04:52]} 5. f4 {[%clk 0:04:53.8]} 5...
d6 {[%clk 0:04:46.2]} 6. Nf3 {[%clk 0:04:51.6]} 6... Nc6 {[%clk 0:04:43.8]} 7.
e5 {[%clk 0:04:47.7]} 7... dxe5 {[%clk 0:04:41.9]} 8. fxe5 {[%clk 0:04:46.3]}
8... Ne8 {[%clk 0:04:40.5]} 9. Be2 {[%clk 0:04:41.1]} 9... f6 {[%clk 0:04:39.5]}
10. exf6 {[%clk 0:04:36.6]} 10... Bxf6 {[%clk 0:04:38.2]} 11. Be3 {[%clk
0:04:30.7]} 11... Bg4 {[%clk 0:04:36.8]} 12. O-O {[%clk 0:04:25.5]} 12... Bxf3
{[%clk 0:04:33.5]} 13. Rxf3 {[%clk 0:04:22.5]} 13... Nxd4 {[%clk 0:04:30.5]} 14.
Bxd4 {[%clk 0:04:20.5]} 14... Bxd4+ {[%clk 0:04:28.7]} 15. Kh1 {[%clk 0:04:17]}
15... Rxf3 {[%clk 0:04:27.1]} 16. Bxf3 {[%clk 0:04:14.2]} 16... Bxc3 {[%clk
0:04:23.9]} 17. Bd5+ {[%clk 0:04:11.1]} 17... Kg7 {[%clk 0:04:19.7]} 18. bxc3
{[%clk 0:04:09.6]} 18... Nf6 {[%clk 0:04:17]} 19. Qd4 {[%clk 0:04:06]} 19... c6
{[%clk 0:04:13]} 20. Bf3 {[%clk 0:03:55.7]} 20... Qxd4 {[%clk 0:04:06.3]} 21.
cxd4 {[%clk 0:03:54.5]} 21... Rd8 {[%clk 0:04:05.5]} 22. Rd1 {[%clk 0:03:39.9]}
22... c5 {[%clk 0:03:55]} 23. d5 {[%clk 0:03:32.1]} 23... b6 {[%clk 0:03:45.8]}
24. Re1 {[%clk 0:03:29.5]} 24... Kf7 {[%clk 0:03:39.8]} 25. h3 {[%clk
0:03:25.5]} 25... a6 {[%clk 0:03:26.5]} 26. g4 {[%clk 0:03:23.6]} 26... b5
{[%clk 0:03:25.2]} 27. g5 {[%clk 0:03:20.6]} 27... Ne8 {[%clk 0:03:16.4]} 28.
cxb5 {[%clk 0:03:11.8]} 28... axb5 {[%clk 0:03:12.4]} 29. Rc1 {[%clk 0:03:07.5]}
29... c4 {[%clk 0:03:10.6]} 30. a4 {[%clk 0:03:02.4]} 30... bxa4 {[%clk
0:03:05.5]} 31. Rxc4 {[%clk 0:03:00.8]} 31... Ra8 {[%clk 0:03:02]} 32. d6 {[%clk
0:02:53.1]} 32... Ra7 {[%clk 0:02:52.2]} 33. Bd5+ {[%clk 0:02:44.7]} 33... e6
{[%clk 0:02:48.5]} 34. Rf4+ {[%clk 0:02:34.7]} 34... Kg7 {[%clk 0:02:45.5]} 35.
Bc6 {[%clk 0:01:58.8]} 35... Nxd6 {[%clk 0:02:40.2]} 36. Bxa4 {[%clk 0:01:56.8]}
36... e5 {[%clk 0:02:36.7]} 37. Rb4 {[%clk 0:01:50.9]} 37... e4 {[%clk 0:02:32]}
38. Kg2 {[%clk 0:01:47.5]} 38... e3 {[%clk 0:02:28.5]} 39. Kf3 {[%clk
0:01:42.8]} 39... Nf5 {[%clk 0:02:26.3]} 40. Bc2 {[%clk 0:01:26.5]} 40... Re7
{[%clk 0:02:19.2]} 41. Bd3 {[%clk 0:01:14]} 41... h6 {[%clk 0:02:05]} 42. gxh6+
{[%clk 0:00:58.8]} 42... Kxh6 {[%clk 0:02:02.4]} 43. Rb6 {[%clk 0:00:48.9]}
43... e2 {[%clk 0:01:55]} 44. Bxf5 {[%clk 0:00:20.4]} 44... e1=Q {[%clk
0:01:51.9]} 45. Rxg6+ {[%clk 0:00:15]} 45... Kh5 {[%clk 0:01:48.1]} 46. Rg8
{[%clk 0:00:12.2]} 46... Qf1+ {[%clk 0:01:42.9]} 47. Kg3 {[%clk 0:00:07.2]}
47... Re3+ {[%clk 0:01:40.8]} 48. Kh2 {[%clk 0:00:04.9]} 48... Qf2+ {[%clk
0:01:37.7]} 49. Rg2 {[%clk 0:00:03.5]} 49... Qxf5 {[%clk 0:01:33.7]} 0-1